Cogmind - Beta 13 *** ADVENTURER MODE // 2024.07.28 @ 22:08:27 Player: array Result: Destroyed by H-55 Commando with Gauss Rifle Performance ------------- Evolutions (1) 500 Regions Visited (5) 1000 Robots Destroyed (59) 295 Value Destroyed (1470) 1470 Prototype IDs (24) 480 Alien Tech Used (0) 0 Bonus (300) 300 TOTAL SCORE: 4045 Bonus ------- Aligned with FarCom 300 Cogmind --------- Core Integrity 0/400 Matter 220/300 Energy 64/100 System Corruption 0% Temperature Cool (0) Movement Walking (130) Location -8/Mines Parts ------- > --- POWER (1) -------- (None) > --- PROPULSION (2) --- Titanium Leg Titanium Leg > --- UTILITY (3) ------ Medium Storage Unit Improved Signal Interpreter Improved Targeting Computer > --- WEAPON (3) ------- Particle Gun Light Assault Rifle Mini Grenade Launcher > --- INVENTORY (10) --- Titanium Leg Heat Sink Improved Signal Interpreter Shield Generator Thief Drone Bay Rocket Launcher Field Lobotomy Kit (5) Peak State ------------ > --- POWER ------------ Improved Ion Engine > --- PROPULSION ------- Titanium Leg Titanium Leg > --- UTILITY ---------- Medium Storage Unit Improved Signal Interpreter Improved Targeting Computer > --- WEAPON ----------- EM Shotgun Particle Gun Mini Grenade Launcher > --- INVENTORY -------- Titanium Leg Heat Sink Improved Signal Interpreter Shield Generator Thief Drone Bay XL Autogun Array Rocket Launcher [Rating: 25] Favorites ----------- Power Improved Ion Engine Engine Improved Ion Engine Power Core Light Nuclear Core Propulsion Titanium Leg Leg Titanium Leg Wheel Compact Wheel Utility Improved Signal Interpreter Device Sensor Array Storage Small Storage Unit Processor Improved Signal Interpreter Weapon Beam Cannon Energy Gun Particle Gun Energy Cannon Beam Cannon Ballistic Gun Light Assault Rifle Launcher Mini Grenade Launcher Build | -11 -10 -9 -9 -9 -8 ------- Run | Yrd Mat Mat Min Exi Min Slots Evolved 2 | . . 2 . . . Power . | . . . . . . Propulsion . | . . . . . . Utility 1 | . . 1 . . . Weapon 1 | . . 1 . . . Parts Attached 49 | 6 13 18 9 1 2 Power 7 | 1 1 2 3 . . Engine 6 | 1 1 2 2 . . Core 1 | . . . 1 . . Reactor . | . . . . . . Propulsion 14 | 2 6 4 2 . . Treads . | . . . . . . Leg 11 | . 5 4 2 . . Wheel 3 | 2 1 . . . . Hover . | . . . . . . Flight . | . . . . . . Utility 9 | 1 1 5 1 1 . Device 3 | . . 3 . . . Storage 3 | 1 . . 1 1 . Processor 3 | . 1 2 . . . Hackware . | . . . . . . Protection . | . . . . . . Artifact . | . . . . . . Weapon 19 | 2 5 7 3 . 2 Energy Gun 4 | . 1 1 2 . . Energy Cannon 3 | . 1 2 . . . Ballistic Gun 9 | 2 3 3 . . 1 Ballistic Cannon . | . . . . . . Launcher 3 | . . 1 1 . 1 Special Weapon . | . . . . . . Impact Weapon . | . . . . . . Slashing Weapon . | . . . . . . Piercing Weapon . | . . . . . . Special Melee Weapon . | . . . . . . Unidentified Prototypes . | . . . . . . Parts Lost 11 | . . 4 5 . 2 Power 3 | . . 1 1 . 1 Propulsion 1 | . . . 1 . . Utility 1 | . . 1 . . . Weapon 6 | . . 2 3 . 1 Highest Loss Streak 5 | . . 4 5 . 1 To Critical Strikes . | . . . . . . Average Slot Usage (%) 98 | . 97 99 97 100 98 Engine 11 | . 14 11 11 11 9 Leg 22 | . 26 22 22 22 22 Device 2 | . . 9 . . . Storage 11 | . 14 11 11 11 11 Processor 17 | . 11 12 22 22 22 Energy Gun 11 | . 4 1 11 22 11 Energy Cannon 7 | . 6 20 8 . . Ballistic Gun 7 | . 17 9 8 . 2 Launcher 5 | . . 1 2 11 18 Naked Turns . | . . . . . . Heaviest Build 26 | 10 14 23 26 24 25 Greatest Support 34 | 26 26 34 34 34 34 Greatest Overweight (x) 3 | 3 . 1 . . . Average Overweight (x) . | . . . . . . Largest Inventory Capacity 10 | 8 8 8 10 10 10 Average Capacity 8 | 7 8 8 8 10 10 Most Carried 10 | 4 8 8 9 10 7 Average Carried 6 | 2 7 7 7 6 6 Final Capacity 10 | 8 8 8 10 10 10 Final Carried 8 | 4 8 7 6 7 7 Class Distribution -------------------- 49% | Gunner 15% | Scavenger-Mutant 11% | Skirmisher 8% | Mutant 8% | Scavenger-Skirmisher 6% | Tank Dominant Class ---------------- Scavenger-Mutant | -10/Materials Scavenger-Skirmisher | -9/Materials Gunner | -9/Mines Gunner | -9/Exiles Skirmisher | -8/Mines Resources | -11 -10 -9 -9 -9 -8 ----------- Run | Yrd Mat Mat Min Exi Min Matter Collected 1132 | 219 215 373 98 . 227 Remotely . | . . . . . . Salvage Created 1631 | . 386 712 240 . 293 Parts 117 | . 30 49 12 . 26 Haulers Intercepted . | . . . . . . Recyclers Shooed 2 | . . . . . 2 Parts Field Recycled . | . . . . . . Retrieved Matter . | . . . . . . Parts Self-Destructed . | . . . . . . Prevented . | . . . . . . Kills | -11 -10 -9 -9 -9 -8 ------- Run | Yrd Mat Mat Min Exi Min Combat Hostiles Destroyed 60 | . 11 19 20 . 10 Guns 23 | . 9 5 3 . 6 Cannons 14 | . 2 9 3 . . AOE 20 | . . 2 14 . 4 Classes Destroyed 9 | . 3 4 2 . . Worker 3 | . . 2 . . 1 Builder 2 | . . . 1 . 1 Tunneler 3 | . . 1 . . 2 Watcher 6 | . 2 4 . . . Swarmer 17 | . 3 8 2 . 4 Grunt 21 | . 8 5 2 . 6 Duelist 2 | . . 1 1 . . Sentry 5 | . . 5 . . . Assembled 15 | . . . 15 . . Best Kill Streak 12 | . 3 5 12 . 7 Combat Bots Only 11 | . 3 4 11 . 7 Max Kills in Single Turn 3 | . 1 2 3 . 2 Gunslinging . | . . . . . . Exploded 2 | . . 2 2 . 1 Melee . | . . . . . . Uniques/NPCs Destroyed . | . . . . . . Combat | -11 -10 -9 -9 -9 -8 -------- Run | Yrd Mat Mat Min Exi Min Hostile Shots Fired 224 | . 37 91 59 . 37 Missed 59 | . 8 20 21 . 10 Damage Taken 2152 | . 238 804 711 . 399 Core 495 | . 81 132 161 . 121 Absorbed by Shields 35 | . . 35 . . . Ignored by Resistances 634 | . 77 242 201 . 114 Core Remaining (%) 83 | 100 67 . . . . Volleys Fired 143 | . 33 50 28 . 32 Largest 3 | . 2 3 3 . 3 Hottest 150 | . 80 150 139 . 140 Shots Fired 290 | . 66 116 52 . 56 Gun 166 | . 60 34 26 . 46 Cannon 94 | . 6 79 9 . . Launcher 30 | . . 3 17 . 10 Special . | . . . . . . Kinetic 104 | . 47 34 10 . 13 Thermal 153 | . 19 79 23 . 32 Explosive 30 | . . 3 17 . 10 Electromagnetic 3 | . . . 2 . 1 Robot Hit Streak 47 | . 20 23 47 . 17 Robot Miss Streak 2 | . 2 2 1 . 2 Penetration Max . | . . . . . . Secondary Targets 1 | . 1 . . . . Max Gunslinging Chain 1 | . 1 . . . . Shots Hit Robots 220 | . 50 82 43 . 45 Core Hits 120 | . 26 32 34 . 28 Critical Kills 3 | . . 3 . . . Critical Parts Destroyed . | . . . . . . Critical Strikes 5 | . . 3 2 . . Burn 2 | . . . 2 . . Meltdown 3 | . . 3 . . . Melee Attacks . | . . . . . . Impact . | . . . . . . Slashing . | . . . . . . Piercing . | . . . . . . Sneak Attacks . | . . . . . . Combat Hostiles . | . . . . . . Follow-up Attacks . | . . . . . . Damage Inflicted 4835 | . 470 1626 1603 . 1136 Guns 1506 | . 401 271 306 . 528 Cannons 1299 | . 69 1089 141 . . Explosions 2030 | . . 266 1156 . 608 Melee . | . . . . . . Ramming . | . . . . . . Kinetic 696 | . 274 271 79 . 72 Thermal 2065 | . 196 1089 344 . 436 Explosive 2030 | . . 266 1156 . 608 Electromagnetic 44 | . . . 24 . 20 Impact . | . . . . . . Slashing . | . . . . . . Piercing . | . . . . . . Highest Corruption . | . . . . . . Average Corruption . | . . . . . . Corruption Purged . | . . . . . . Corruption Blocked . | . . . . . . Overload Shots . | . . . . . . Overflow Damage 138 | . . 21 74 . 43 Projectiles 11 | . . . 11 . . Explosions 127 | . . 21 63 . 43 Melee . | . . . . . . Knockbacks . | . . . . . . Impact . | . . . . . . Kinetic . | . . . . . . Secondary . | . . . . . . Self-Inflicted Damage 179 | . . . 86 . 93 Shots 8 | . . . 4 . 4 Rammed . | . . . . . . Targets Rammed . | . . . . . . Kicked . | . . . . . . Crushed . | . . . . . . Highest Temperature 427 | . 72 427 284 . 283 Average Temperature 116 | . 27 155 90 . 103 Received Heat Transfer 708 | . 123 255 87 . 243 Effects 7 | . . 7 . . . Shutdowns 2 | . . 2 . . . Energy Bleed 1 | . . 1 . . . Interference 3 | . . 3 . . . Short Circuit 1 | . . 1 . . . Siege Activations . | . . . . . . Robots Corrupted . | . . . . . . Combat Hostiles . | . . . . . . Parts Fried . | . . . . . . Impact Corruptions . | . . . . . . Robots Melted 3 | . . 3 . . . Combat Hostiles 3 | . . 3 . . . Parts Melted 14 | . . 9 3 . 2 Heat Transferred 4777 | . 448 2294 962 . 1073 Parts Sabotaged . | . . . . . . Parts Stolen . | . . . . . . Parts Stripped . | . . . . . . Power Chain Reactions . | . . . . . . Alert | -11 -10 -9 -9 -9 -8 ------- Run | Yrd Mat Mat Min Exi Min Peak Influence 295 | . 239 288 269 . 295 Initial 94 | . . 7 94 . . Average 118 | . 66 138 136 . 206 Maximum Alert Level 1 | . 1 1 1 . 1 Low Security (%) 74 | 100 93 65 87 . 14 Level 1 25 | . 6 34 12 . 85 Level 2 . | . . . . . . Level 3 . | . . . . . . Level 4 . | . . . . . . Level 5 . | . . . . . . High Security . | . . . . . . Max Security . | . . . . . . Squads Dispatched 5 | . 2 2 . . 1 Investigation 3 | . 2 1 . . . Extermination . | . . . . . . Reinforcement 2 | . . 1 . . 1 Assault . | . . . . . . Garrison . | . . . . . . Intercept . | . . . . . . Searches Triggered . | . . . . . . Construction Impeded 1 | . . . . . 1 Haulers Reinforced . | . . . . . . Active Scanning Responses . | . . . . . . Cargo Convoy Interrupts . | . . . . . . Stealth | -11 -10 -9 -9 -9 -8 --------- Run | Yrd Mat Mat Min Exi Min Distress Signals 3 | . 1 2 . . . Communications Jammed . | . . . . . . Distress Signals . | . . . . . . Times Spotted 79 | . 15 25 28 . 11 Peak Tracking Total 11 | . 3 4 11 . 4 Tactical Retreats 5 | . . 1 3 . 1 Traps | -11 -10 -9 -9 -9 -8 ------- Run | Yrd Mat Mat Min Exi Min Traps Triggered 3 | . 3 . . . . Indirectly . | . . . . . . Trap Hack Attempts . | . . . . . . Triggered . | . . . . . . Disarmed . | . . . . . . Reprogrammed . | . . . . . . Reused . | . . . . . . Traps Extracted . | . . . . . . Installed . | . . . . . . Triggered . | . . . . . . Machines | -11 -10 -9 -9 -9 -8 ---------- Run | Yrd Mat Mat Min Exi Min Machines Disabled 3 | . . 3 . . . Max in Single Turn 1 | . . 1 . . . Machines Repaired . | . . . . . . Machines Dismantled . | . . . . . . Machines Sabotaged . | . . . . . . Overloaded Fab Kills . | . . . . . . Hacking | -11 -10 -9 -9 -9 -8 --------- Run | Yrd Mat Mat Min Exi Min Machines Accessed 15 | . 3 5 2 5 . Terminals 7 | . 2 4 1 . . Fabricators . | . . . . . . Repair Stations . | . . . . . . Recycling Units 1 | . 1 . . . . Scanalyzers 1 | . . 1 . . . Garrison Access . | . . . . . . Total Hacks 70 | . 5 13 2 50 . Successful 61 | . 2 8 1 50 . Failed 9 | . 3 5 1 . . Catastrophic 4 | . 2 2 . . . Database Lockouts . | . . . . . . Manual 7 | . 2 2 1 2 . Terminals 11 | . 2 8 1 . . Fabricators . | . . . . . . Repair Stations . | . . . . . . Recycling Units 3 | . 3 . . . . Scanalyzers 5 | . . 5 . . . Garrison Access . | . . . . . . Terminal Hacks 54 | . . 3 1 50 . Record 51 | . . 2 . 49 . Open Door 1 | . . . 1 . . Scanalyzer Index 1 | . . 1 . . . Derelict Proto ID Bank 1 | . . . . 1 . Fabricator Hacks . | . . . . . . Repair Station Hacks . | . . . . . . Recycling Unit Hacks 2 | . 2 . . . . Report Inventory 1 | . 1 . . . . Retrieve Components 1 | . 1 . . . . Scanalyzer 5 | . . 5 . . . Insert Component 3 | . . 3 . . . Analyze 2 | . . 2 . . . Garrison Access Hacks . | . . . . . . Unauthorized Hacks . | . . . . . . Terminals . | . . . . . . Fabricators . | . . . . . . Repair Stations . | . . . . . . Recycling Units . | . . . . . . Scanalyzers . | . . . . . . Garrison Access . | . . . . . . Data Cores Recovered . | . . . . . . Used . | . . . . . . Hacking Detections 7 | . 2 4 1 . . Full Trace Events 1 | . . 1 . . . Feedback Events . | . . . . . . Feedback Blocked . | . . . . . . Robot Schematics Acquired . | . . . . . . Robots Built . | . . . . . . Authchips . | . . . . . . Time . | . . . . . . Total Robot Build Rating . | . . . . . . Part Schematics Acquired 2 | . . 2 . . . Parts Built . | . . . . . . Authchips . | . . . . . . Time . | . . . . . . Total Part Build Rating . | . . . . . . Parts Repaired . | . . . . . . Time . | . . . . . . Parts Recycled . | . . . . . . Recycled Matter . | . . . . . . Retrieved Matter . | . . . . . . Retrieved Components 10 | . 10 . . . . Parts Scanalyzed 2 | . . 2 . . . Part Schematics Acquired 2 | . . 2 . . . Parts Damaged . | . . . . . . Bothacking | -11 -10 -9 -9 -9 -8 ------------ Run | Yrd Mat Mat Min Exi Min Used RIF Installer . | . . . . . . Robots Hacked . | . . . . . . Non-combat . | . . . . . . Combat . | . . . . . . Robot Hacks Applied . | . . . . . . Relay Couplers Released . | . . . . . . Fabnet Peak Effective % . | . . . . . . Robots Rewired . | . . . . . . Allies Hacked . | . . . . . . Hacks Repelled . | . . . . . . Allies | -11 -10 -9 -9 -9 -8 -------- Run | Yrd Mat Mat Min Exi Min Total Allies . | . . . . . . Largest Group . | . . . . . . Highest-Rated Group . | . . . . . . Highest-Rated Ally . | . . . . . . Total Orders . | . . . . . . Ally Attacks . | . . . . . . Total Damage . | . . . . . . Kills . | . . . . . . Allies Corrupted . | . . . . . . Allies Melted . | . . . . . . Intel | -11 -10 -9 -9 -9 -8 ------- Run | Yrd Mat Mat Min Exi Min Robot Analysis Total . | . . . . . . Derelict Logs Recovered 1 | . . . 1 . . Drone Launches . | . . . . . . Drone Recoveries . | . . . . . . Exploration | -11 -10 -9 -9 -9 -8 ------------- Run | Yrd Mat Mat Min Exi Min Turns Passed 4508 | 83 910 1073 602 1557 283 Spaces Moved 2997 | 65 651 567 381 1187 146 Core 31 | 31 . . . . . Treads . | . . . . . . Legs 2889 | . 608 567 381 1187 146 Wheels 77 | 34 43 . . . . Hover . | . . . . . . Flight . | . . . . . . Fastest Speed 50 | 50 90 120 130 130 130 Average Speed 130 | 108 118 146 130 130 130 Slowest Speed 200 | 200 120 190 130 130 130 Overloaded Moves . | . . . . . . Propulsion Burnouts . | . . . . . . Robots Hopped . | . . . . . . Cave-ins Triggered . | . . . . . . Exploration Rate (%) 46 | 4 64 40 54 95 20 Regions Visited 5 Branch Regions 3 Pre-discovered Areas 1 | . . . . 1 . Known Exits Taken 3 | . . 1 1 1 . Unknown Exits Taken 2 | 1 1 . . . . Scrap Searched 2 | . . . 2 . . Spaces Dug 9 | . . 9 . . . Terrain Destroyed 168 | . . 18 95 . 55 Melee . | . . . . . . Projectile . | . . . . . . AOE 168 | . . 18 95 . 55 Terrain Rammed . | . . . . . . Walls Destroyed . | . . . . . . Machines Disabled . | . . . . . . Actions | -11 -10 -9 -9 -9 -8 --------- Run | Yrd Mat Mat Min Exi Min Total 3362 | 75 736 716 444 1204 187 Wait 93 | . 23 46 18 . 6 Move 2992 | 64 650 566 380 1186 146 Hop . | . . . . . . Pick Up 41 | 5 7 17 4 7 1 Fast Attach 17 | 5 6 2 4 . . Attach 10 | 1 . 5 3 . 1 Detach . | . . . . . . Swap 22 | . 7 11 2 1 1 Drop 41 | . 10 19 5 7 . Fire 143 | . 33 50 28 . 32 Melee . | . . . . . . Ram . | . . . . . . Kick . | . . . . . . Crush . | . . . . . . Escape Stasis . | . . . . . . Rewire 3 | . . . . 3 . Trap . | . . . . . . Miscellaneous . | . . . . . . Route ------- -11/Scrapyard -10/Materials (discovered 2 exits: *Mat x2) -9/Materials (discovered 3 exits: [*Mat] / *Min / [*Sto]) -9/Mines (discovered 2 exits: *Exi / *Zio) -9/Exiles (discovered 2 exits: *Min x2) -8/Mines History --------- Turn | Location | Event 24 | -11/Scrapyard | Discovered new exit (range 15) 84 | -11/Scrapyard | Entered Materials 597 | -10/Materials | Build established: Scavenger-Mutant 844 | -10/Materials | Discovered new exit (range 12) 924 | -10/Materials | Discovered new exit (range 10) 994 | -10/Materials | Entered another Materials area 994 | -9/Materials | Evolved 2 slots: Utility x1, Weapon x1 1149 | -9/Materials | Discovered new exit (range 13) 1307 | -9/Materials | Build established: Scavenger-Skirmisher 1903 | -9/Materials | Discovered new exit (range 16) 1992 | -9/Materials | Lost 4 parts (1p1u2w) 2007 | -9/Materials | Discovered new exit (range 16) 2029 | -9/Materials | Identified exit to Mines 2067 | -9/Materials | Entered Mines 2180 | -9/Mines | Build established: Gunner 2215 | -9/Mines | Found the Drone Emporium 2226 | -9/Mines | Found Prototype Device 2270 | -9/Mines | Learned 4 Materials zone layouts 2272 | -9/Mines | A Derelict revealed a hidden shortcut to a safe place 2279 | -9/Mines | Identified exit to Zion 2499 | -9/Mines | Received a Rocket Launcher from a helpful Derelict 2508 | -9/Mines | Assembled infested the area 2532 | -9/Mines | Core integrity fell below 50% 2562 | -9/Mines | Lost 5 parts (1p1n3w) 2579 | -9/Mines | Destroyed 11 combat bots 2660 | -9/Mines | Deemed a non-threat by the Exiles lab entrance 2661 | -9/Mines | Discovered new exit (range 5) 2666 | -9/Mines | Identified exit to Exiles 2669 | -9/Mines | Entered Exiles 2725 | -9/Exiles | Met 8R-AWN 2763 | -9/Exiles | Met EX-HEX 2831 | -9/Exiles | Met EX-DEC 2865 | -9/Exiles | Learned location of Zion (-7) 3020 | -9/Exiles | Discovered new exit (range 14) 3167 | -9/Exiles | Visited The Gauntlet 3575 | -9/Exiles | Met EX-BIN 3614 | -9/Exiles | Aligned with FarCom system 3615 | -9/Exiles | Given EX-Vault access code 3675 | -9/Exiles | Opened EX-Vault 3683 | -9/Exiles | Found Prototype Special Weapon 3694 | -9/Exiles | Identified Field Lobotomy Kit 3701 | -9/Exiles | Found XL Autogun Array 3708 | -9/Exiles | Found Gui. Plasma Cannon 3760 | -9/Exiles | Warned to stay clear of 0b10 Research branches 3982 | -9/Exiles | Discovered new exit (range 15) 4007 | -9/Exiles | Identified exit to Mines 4226 | -9/Exiles | Left Exiles lab with Field Lobotomy Kit 4226 | -9/Exiles | Entered Mines 4236 | -8/Mines | Core integrity fell below 20% 4289 | -8/Mines | Destroyed 7 combat bots 4509 | -8/Mines | Destroyed by H-55 Commando with Gauss Rifle Last Messages --------------- K-01 Serf destroyed. The unstable cave ceiling collapses. Acquired 22 matter. R-06 Scavenger collects Lgt. Assault Rifle. Critical hit (Burn: +37). G-47 Trooper destroyed. Acquired 55 matter. G-47 Trooper destroyed. Imp. Ion Engine destroyed. Critical hit (Burn: +37). Lgt. Nuclear Core melted. G-47 Trooper destroyed. Acquired 78 matter. U-05 Engineer lays Concrete. U-05 Engineer builds a Wall. U-05 Engineer lays Concrete. U-05 Engineer builds a Wall. Slug penetrates Wall. U-05 Engineer lays Concrete. Penetrated by Slug. Map ----- +----------------------------------------------------+ | ?????????????????????????????????????????????????? | | ?????????????????????????????????????????????????? | | ?????????????????????????????????????????????????? | | ?????????????????????????????????????????????????? | | ?????????????????????????????????????????????????? | | ?????????????????????????????????????????????????? | | ?????????????????????????????????????????????????? | | ?????????????????????????????????????????????????? | | ?????????????????????????###?????????????????????? | | ?????????????????????????# ?????????????????????? | | ?????????????????????????# #?????????????????????? | | ?????????????????????????#r#?????????????????????? | | ?????????????????????????# #?????????????????????? | | ????????????????????????? ?????????????????????? | | ?????????????????????????#=#?????????????????????? | | ?????????????????????????# #?????????????????????? | | ?????????????????????????#=##?????#??????????????? | | ??????????????????????#?##* ##??? #??????????????? | | ??????????####??????? #?# #### #??????????????? | | ?????????## ##???### #?# h #??????????????? | | ????###### #???# ?## ## ###??????????????? | | ????#=== #??## #??# * ## # ##?????????????? | | ????# #### #?## ##### | #### ##????????????? | | ????#!#?## #### ## #####????????????? | | ????#=## # # ### ###???????????? | | ????# # @ #???????????? | | u= #???????????? | | "" ### ## ##### #???????????? | | ?????# ## ###### #???????????? | | ?????## # ## ##??## #???????????? | | ??????#### ##### #???# ##???????????? | | ?????????####???# #??# ####????????????? | | ???????????????## ##?# ###???????????????? | | ???????????????# #??# ##?????????????????? | | ??????????????# ##??## #??????????????????? | | ?????????????# ##????#### ??????????????????? | | ????????????# ##????????## ?????????????????? | | ????????????# ???????????## #????????????????? | | ????????????## #????????????? ????????????????? | | ?????????????###?????????????? ????????????????? | | ?????????????????????????????????????????????????? | | ?????????????????????????????????????????????????? | | ?????????????????????????????????????????????????? | | ?????????????????????????????????????????????????? | | ?????????????????????????????????????????????????? | | ?????????????????????????????????????????????????? | | ?????????????????????????????????????????????????? | | ?????????????????????????????????????????????????? | | ?????????????????????????????????????????????????? | | | +----------------------------------------------------+ Best States ------------- Heat Dissipation 28 Energy Generation 12 Energy Capacity 265 Matter Stores 300 Matter Capacity 300 Sight Range 18 Robot Scan Range 14 Terrain Scan Density 10 Resistance: KI 20 Resistance: TH 20 Resistance: EX 20 Resistance: EM 20 Resistance: I 20 Resistance: S 20 Resistance: P 20 Evasion (%) 55 Targeting Accuracy 6 Offensive Hacking 10 Item Schematics ----------------- Titanium Leg | -9/Materials | Scanalyzed Imp. Targeting Computer | -9/Materials | Scanalyzed Robot Schematics ------------------ None Fabricated ------------ Nothing Alien Tech Used ----------------- None Achievements -------------- Exterminator Challenges ------------ None Game ------ Seed DerelictTeslaReplicator Manual? 0 Play Time 00:55:03 Cumulative 14.6 hours Start 2024.07.27 @ 20:32:34 End 2024.07.28 @ 22:08:27 Sessions 3 Manual Loads 0 Difficulty Adventurer Special Mode None Game No. 8 Rogue 0 Adventurer 8 Explorer 0 Win Type - Total 0 Types 0/0/0/0/0/0/0/0/0 Lore% 16 Gallery% 20 Achievement% 20 Wizard Run 0 Options --------- Layout 1 ASCII 0 Keyboard 0 Movement Arrows Keybinds 1 Fullscreen 1 Font 32/Cog Map View 50x35 Zoom Use 0% Tactical HUD 0 Map Filters NONE Filters NONE Steam 0 RUN: 81759e11-4379-42e1-a9c0-f84b363488b7